bitfinex-derivatives/quotes_ETHF0:USTF0_20250627
["timestamp","ask_amount","ask_price","bid_price","bid_amount"]
[1751007022582,0.40835,2447.8,2447.7,41.06982065]
[1751007022783,0.40835,2447.8,2447.7,9.09982065]
[1751007022980,0.40835,2447.8,2447.7,7.4797083]
[1751007023184,0.40835,2447.8,2447.7,39.3857083]
[1751007023384,0.40835,2447.8,2447.7,7.4797083]
[1751007023684,0.40834,2447.9,2447.7,39.7910783]
[1751007023984,0.40834,2447.9,2447.8,2.0225]
[1751007025895,0.40834,2447.9,2447.8,2.43085]
[1751007026192,0.40833,2448.0,2447.8,2.43085]
[1751007026388,0.40829,2448.2,2448.0,0.40831]
[1751007026595,0.40829,2448.2,2448.1,32.8546083]
[1751007028296,0.7227,2448.6,2448.1,32.8546083]
[1751007028591,0.40827,2448.3,2448.1,32.8546083]
[1751007028803,0.40827,2448.3,2448.2,1.4105]
[1751007030392,0.40826,2448.4,2448.2,2.0742]
[1751007030696,0.40826,2448.4,2448.3,1.3588]
[1751007030898,0.40827,2448.3,2448.2,0.6637]
[1751007031298,0.40828,2448.2,2448.1,28.4708]
[1751007031500,0.40828,2448.2,2448.1,28.4438]
[1751007033499,0.40828,2448.2,2448.1,3.2078]
[1751007033699,0.40833,2447.9,2447.8,12.82471235]
[1751007033895,0.40833,2447.9,2447.8,6.18671235]
[1751007034104,0.40833,2447.9,2447.8,38.05671235]
[1751007034701,0.40833,2447.9,2447.8,38.05371235]
[1751007035092,0.40833,2447.9,2447.8,38.05171235]
[1751007035800,0.40833,2447.9,2447.8,4.82791235]
[1751007035997,0.40833,2447.9,2447.8,30.05491235]
[1751007036306,0.40833,2447.9,2447.8,28.4348]
[1751007040305,0.40833,2447.9,2447.8,30.05491235]
[1751007041403,0.40833,2447.9,2447.8,3.2078]
[1751007041609,0.40833,2447.9,2447.7,1.62011235]
[1751007041610,0.40835,2447.8,2447.7,1.62011235]
[1751007041795,2.57455,2447.8,2447.7,1.62011235]
[1751007042109,0.40836,2447.7,2447.6,1.62011235]
[1751007042295,1.84976,2447.7,2447.6,1.62011235]
[1751007042898,0.40836,2447.7,2447.6,1.62011235]
[1751007045314,0.7248,2447.8,2447.6,4.55712065]
[1751007045315,1.13316,2447.8,2447.6,4.55712065]
[1751007045612,1.13316,2447.8,2447.7,2.95804534]
[1751007046811,0.6743,2448.1,2447.7,2.95804534]
[1751007047018,0.702,2448.0,2447.7,2.95804534]
[1751007047206,0.702,2448.0,2447.8,32.7498083]
[1751007047406,1.11032,2448.0,2447.8,32.7498083]
[1751007047808,0.6743,2448.1,2447.8,33.1581483]
[1751007047809,1.08261,2448.1,2447.8,33.1581483]
[1751007048109,1.11029,2448.2,2448.0,2.9370083]
[1751007048309,1.11029,2448.2,2448.0,28.1190083]
[1751007048503,1.11029,2448.2,2448.1,1.42]
[1751007050912,0.4083,2448.1,2448.0,25.182]
[1751007051113,3.3453083,2448.1,2448.0,25.18]
[1751007051609,0.40833,2447.9,2447.8,3.2078]
[1751007051814,3.3453383,2447.9,2447.8,35.0338]
[1751007052005,0.40833,2447.9,2447.8,35.0338]
[1751007054507,0.40833,2447.9,2447.8,3.2078]
[1751007054709,0.40833,2447.9,2447.8,28.3798]
[1751007059723,3.3453383,2447.9,2447.8,28.3798]
[1751007060333,3.3453383,2447.9,2447.8,3.2078]
[1751007060531,3.3453383,2447.9,2447.8,28.3578]
[1751007060824,3.3453383,2447.9,2447.8,28.3478]
[1751007062130,3.3453383,2447.9,2447.8,29.97154534]
[1751007063830,3.3453383,2447.9,2447.8,1.62374534]
[1751007064032,0.40835,2447.8,2447.7,1.62374534]
[1751007064228,1.12105,2447.8,2447.7,26.74974534]
[1751007064431,1.12105,2447.8,2447.7,26.74674534]
[1751007065235,1.12105,2447.8,2447.7,26.533]
[1751007066338,0.40835,2447.8,2447.7,26.533]
[1751007070334,0.40835,2447.8,2447.7,1.41]
[1751007070535,0.40836,2447.7,2447.6,2.43112416]
[1751007070735,1.10156,2447.7,2447.6,27.54412416]
[1751007075440,1.10156,2447.7,2447.6,27.54312416]
[1751007075638,4.0385683,2447.7,2447.6,27.54312416]
[1751007075845,1.10156,2447.7,2447.6,27.54312416]
[1751007076038,3.07942,2448.0,2447.6,29.27160416]
[1751007076039,0.6684,2448.0,2447.6,29.27160416]
[1751007076237,0.40835,2447.8,2447.7,3.66099325]
[1751007076437,0.40834,2447.9,2447.7,3.66099325]
[1751007076636,0.40834,2447.9,2447.7,4.06935325]
[1751007076841,0.40834,2447.9,2447.8,1.62589325]
[1751007077442,1.07673,2448.0,2447.8,4.83369325]
[1751007077745,0.40833,2448.0,2447.8,6.15379325]
[1751007078246,3.2078,2448.4,2447.9,37.57800155]
[1751007078444,0.40829,2448.2,2448.1,3.2078]
[1751007078744,0.40829,2448.2,2448.1,28.3198]
[1751007079045,0.40828,2448.3,2448.1,29.0367]
[1751007079242,0.40828,2448.3,2448.2,1.4444]
[1751007080541,1.07246,2448.4,2448.2,1.4444]
[1751007080941,0.40826,2448.3,2448.2,1.4444]
[1751007085044,3.923,2448.8,2448.2,1.4444]
[1751007085344,0.7267,2448.8,2448.6,2.9370083]
[1751007085548,1.13489,2448.8,2448.7,26.5321]
[1751007087054,0.40821,2448.6,2448.5,3.9371]
[1751007087345,0.40825,2448.4,2448.3,1.4231]
[1751007087547,0.40824,2448.5,2448.3,33.0741]
[1751007087746,0.40824,2448.5,2448.3,1.4231]
[1751007087945,0.40823,2448.5,2448.4,25.107]
[1751007089838,0.40825,2448.4,2448.3,7.9671]
[1751007090034,0.40826,2448.3,2448.2,3.2078]
[1751007090239,1.11866,2448.3,2448.2,34.8578]
[1751007090444,0.6807,2448.7,2448.2,34.8578]
[1751007090643,0.7104,2448.6,2448.2,34.8578]
[1751007090841,0.40826,2448.3,2448.2,36.1863]
[1751007093143,0.7104,2448.6,2448.4,0.40825]
[1751007093449,0.7104,2448.6,2448.5,28.3128]
[1751007093647,0.7104,2448.6,2448.5,29.7396]
[1751007093947,1.11861,2448.6,2448.5,29.7396]
[1751007094349,0.40821,2448.6,2448.5,29.7396]
[1751007094550,0.40821,2448.7,2448.5,30.14782]
[1751007094750,0.40821,2448.7,2448.6,1.3224]
[1751007097348,0.40819,2448.8,2448.6,1.3224]
[1751007097551,0.40819,2448.8,2448.7,25.104]
[1751007098249,3.3451983,2448.8,2448.7,25.104]
[1751007099851,0.40819,2448.8,2448.7,25.104]
[1751007103455,0.6617,2448.9,2448.7,25.104]
[1751007103653,0.6578,2449.0,2448.8,3.2078]
[1751007103957,3.3451683,2448.9,2448.8,28.3098]
[1751007104146,4.0210683,2448.9,2448.8,28.3098]
[1751007106056,4.0210683,2448.9,2448.8,3.2078]
[1751007106257,4.0210683,2448.9,2448.8,28.3078]
[1751007107451,0.6759,2448.9,2448.8,28.71598]
[1751007107654,0.40814,2449.1,2448.8,28.71598]
[1751007107854,0.9307243,2449.0,2448.8,30.13338]
[1751007108058,1.10384,2449.1,2448.9,1.4174]
[1751007108357,0.93072515,2449.0,2448.9,1.4174]
[1751007108762,1.33887515,2449.0,2448.9,1.4174]
[1751007109261,0.93072515,2449.0,2448.9,1.4174]
[1751007109554,1.10384,2449.1,2448.9,1.4174]
[1751007109757,1.10384,2449.1,2448.9,1.82556]
[1751007109758,0.93098435,2449.0,2448.9,1.82556]
[1751007109956,1.10384,2449.1,2448.9,2.0778]
[1751007110154,0.93098435,2449.0,2448.9,2.0778]
[1751007110458,1.10384,2449.1,2448.9,2.0778]
[1751007110861,1.10384,2449.1,2448.9,2.48596]
[1751007111359,0.6957,2449.1,2448.9,2.48596]
[1751007111556,0.40816,2448.9,2448.8,3.2078]
[1751007111762,3.3451683,2448.9,2448.8,28.3058]
[1751007112352,4.7061683,2448.9,2448.8,28.3058]
[1751007113059,5.63719115,2448.9,2448.8,28.3058]
[1751007113660,5.63719115,2448.9,2448.8,25.098]
[1751007115558,0.40821,2448.6,2448.5,3.2078]
[1751007115759,0.40821,2448.6,2448.5,34.8428]
[1751007116963,0.7235,2448.6,2448.5,34.8428]
[1751007117162,0.4082,2448.7,2448.5,34.8428]
[1751007117362,0.6621,2448.8,2448.5,34.8428]
[1751007117561,0.6621,2448.8,2448.6,0.40821]
[1751007117765,0.6621,2448.8,2448.7,25.096]
[1751007117960,1.59742747,2448.8,2448.7,25.096]
[1751007118161,2.00560747,2448.8,2448.7,26.4433]
[1751007119669,0.40821,2448.6,2448.5,9.7468]
[1751007119869,0.40821,2448.6,2448.5,34.8418]
[1751007120269,3.3452183,2448.6,2448.5,3.2078]
[1751007120473,0.40821,2448.7,2448.5,28.3028]
[1751007120662,3.5991083,2448.8,2448.5,28.3028]
[1751007120863,0.93555525,2448.7,2448.5,30.02522]
[1751007121063,0.40821,2448.6,2448.5,29.617]
[1751007121273,0.40821,2448.6,2448.5,4.522]
[1751007121476,0.40821,2448.6,2448.5,29.616]
[1751007121670,0.40821,2448.7,2448.5,29.616]
[1751007122462,0.40821,2448.7,2448.5,30.02423]
[1751007122668,1.07029,2448.8,2448.5,30.02423]
[1751007122973,1.07029,2448.8,2448.6,1.80221]
[1751007123175,1.07029,2448.8,2448.7,25.095]
[1751007123475,2.00618086,2448.8,2448.7,25.095]
[1751007126175,1.59799086,2448.8,2448.7,25.095]
[1751007126373,3.24700648,2449.6,2448.7,33.0320083]
[1751007126572,2.04881136,2449.2,2449.0,3.2078]
[1751007126767,0.7047,2449.2,2449.0,28.3008]
[1751007126970,1.11282,2449.2,2449.0,28.3008]
[1751007127166,1.11282,2449.2,2448.7,3.2078]
[1751007127167,0.40818,2448.8,2448.7,3.2078]
[1751007127374,3.3451883,2448.8,2448.7,3.2078]
[1751007129276,4.0498883,2448.8,2448.7,3.2078]
[1751007133079,3.6417083,2448.8,2448.3,2.43112416]
[1751007133276,7.1654483,2448.4,2447.8,6.54]
[1751007133485,3.3453383,2447.9,2447.8,31.633]
[1751007134180,0.40835,2447.8,2447.7,9.76408618]
[1751007134483,1.08375,2447.8,2447.7,9.76408618]
[1751007134685,1.08375,2447.8,2447.7,34.85708618]
[1751007134885,1.08375,2447.8,2447.7,36.27408618]
[1751007136286,1.08375,2447.8,2447.7,36.27508618]
[1751007136588,1.08375,2447.8,2447.7,33.051]
[1751007136784,2.9370083,2448.1,2447.7,33.051]
[1751007136988,0.40833,2448.0,2447.8,1.3632]
[1751007137282,0.6906,2448.1,2447.9,25.094]
[1751007137487,0.40833,2448.0,2447.9,25.094]
[1751007139291,0.40833,2448.0,2447.9,26.4572]
[1751007141095,0.40833,2447.9,2447.8,6.541]
[1751007141294,0.40833,2447.9,2447.8,25.096]
[1751007141490,0.40833,2447.9,2447.6,5.75637]
[1751007141696,0.40833,2447.9,2447.7,33.0488]
[1751007142291,0.40835,2447.8,2447.7,33.0488]
[1751007142794,0.40835,2447.8,2447.7,7.9528]
[1751007142997,0.40835,2447.8,2447.7,1.4118]
[1751007143195,0.40835,2447.8,2447.7,26.5078]
[1751007144301,0.40835,2447.8,2447.7,1.4118]
[1751007144598,0.40835,2447.8,2447.7,26.5078]
[1751007145805,0.40835,2447.8,2447.7,1.4118]
[1751007146010,0.40835,2447.8,2447.7,25.096]
[1751007146202,0.40836,2447.7,2447.6,10.4732]
[1751007146402,0.40836,2447.7,2447.6,36.9359]
[1751007147202,0.40836,2447.7,2447.6,5.3029]
[1751007147406,0.40836,2447.7,2447.6,36.9379]
[1751007148105,0.40836,2447.7,2447.6,5.3029]
[1751007148302,0.40836,2447.7,2447.6,36.9369]
[1751007149903,0.40836,2447.7,2447.6,5.3029]
[1751007150209,0.40836,2447.7,2447.6,34.8418]
[1751007150798,0.40836,2447.7,2447.6,3.2078]
[1751007151008,0.40836,2447.7,2446.9,7.07879891]
[1751007151009,1.02099,2447.6,2446.9,7.07879891]
[1751007151201,0.40847,2447.1,2447.0,7.2462]
[1751007151508,0.40845,2447.2,2447.0,34.12877]
[1751007151711,0.40844,2447.3,2447.1,4.3151083]
[1751007151909,0.40844,2447.3,2447.2,26.4741]
[1751007153311,0.40847,2447.1,2447.0,0.7082]
[1751007153615,0.40847,2447.1,2447.0,32.3432]
[1751007155218,0.40847,2447.1,2446.9,9.7458]
[1751007155219,0.40848,2447.0,2446.9,9.7458]
[1751007155512,0.40848,2447.0,2446.9,34.8428]
[1751007157209,0.40848,2447.0,2446.9,31.636]
[1751007157819,0.4085,2446.9,2446.8,1.4298]
[1751007158018,0.4085,2446.9,2446.8,33.0668]
[1751007158719,0.4085,2447.0,2446.8,33.0668]
[1751007158919,0.4085,2446.9,2446.8,33.0668]
[1751007159415,0.4085,2446.9,2446.8,1.4298]
[1751007159620,0.4085,2446.9,2446.8,33.0678]
[1751007159814,0.40852,2446.8,2446.7,0.7017]
[1751007160020,0.40852,2446.8,2446.7,31.638]
[1751007160320,0.40851,2446.9,2446.7,31.638]
[1751007160624,0.40852,2446.8,2446.6,4.33584]
[1751007160813,0.6866,2446.8,2446.7,31.637]
[1751007161013,0.6866,2446.8,2446.7,32.04553]
[1751007161312,0.40851,2446.9,2446.7,33.49573]
[1751007162322,0.40852,2446.8,2446.7,33.0872]
[1751007163220,0.40852,2446.8,2446.7,7.9892]
[1751007163421,0.40852,2446.8,2446.7,33.0882]
[1751007165418,0.6866,2447.0,2446.7,33.49673]
[1751007165619,0.40851,2446.9,2446.7,33.49673]
[1751007165921,0.6866,2447.0,2446.7,33.0882]
[1751007165922,0.40852,2446.8,2446.7,33.0882]
[1751007166624,0.40852,2446.8,2446.7,33.0892]
[1751007167025,0.40852,2446.8,2446.7,33.49773]
[1751007167320,1.09509,2447.0,2446.7,36.0262083]
[1751007167624,1.09509,2447.0,2446.9,2.9370083]
[1751007167922,1.09509,2447.0,2446.9,28.0350083]
[1751007168524,1.09509,2447.0,2446.9,28.4435083]
[1751007170621,1.09509,2447.0,2446.9,28.0350083]
[1751007170925,1.09509,2447.0,2446.9,25.098]
[1751007171926,1.09509,2447.0,2446.9,25.5065]
[1751007172225,1.09509,2447.0,2446.9,26.9175]
[1751007172524,0.6866,2447.0,2446.9,26.9175]
[1751007172726,0.40843,2447.3,2447.1,0.40846]
[1751007172927,1.09922,2447.4,2447.2,0.40844]
[1751007173118,1.09922,2447.4,2447.2,1.81944]
[1751007174627,0.6908,2447.4,2447.3,0.40843]
[1751007174927,1.09921,2447.4,2447.2,1.81944]
[1751007175133,0.40843,2447.3,2447.2,1.411]
[1751007175429,1.09923,2447.4,2447.2,1.81945]
[1751007177821,0.40843,2447.3,2447.2,1.411]
[1751007178534,1.09923,2447.4,2447.2,1.81945]
[1751007180630,9.7478,2447.6,2447.2,1.411]
[1751007180820,0.94379846,2447.5,2447.4,3.3454183]
[1751007181525,0.9437445,2447.5,2447.4,29.8274183]
[1751007181726,0.40837,2447.7,2447.5,0.40839]
[1751007181928,0.94373064,2447.6,2447.5,1.79739]
[1751007183136,0.40837,2447.7,2447.5,1.79739]
[1751007183528,0.689,2448.0,2447.8,0.40834]
[1751007183728,0.94312025,2447.9,2447.8,3.3453483]
[1751007184033,0.94312025,2447.9,2447.8,4.6720483]
[1751007184436,0.7019,2448.1,2447.9,0.40833]
[1751007184733,0.9427009,2448.0,2447.9,1.73503]
[1751007185427,1.1102,2448.1,2447.9,1.73503]
[1751007186354,0.7251,2448.3,2447.9,1.73503]
[1751007186355,0.7251,2448.3,2448.0,2.9370083]
[1751007186540,0.40829,2448.2,2448.0,29.7999083]
[1751007187339,1.13338,2448.3,2448.1,0.4083]
[1751007187538,1.13338,2448.3,2448.1,1.7759]
[1751007187930,0.7251,2448.3,2448.1,1.7759]
[1751007188236,0.7251,2448.3,2448.2,0.40828]
[1751007188530,1.13337,2448.3,2448.1,1.77589]
[1751007189333,0.7251,2448.3,2448.2,0.40828]
[1751007189540,7.9295,2448.7,2448.2,0.40828]
[1751007189541,2.43873197,2449.0,2448.2,2.9370083]
[1751007189730,0.7245,2448.8,2448.6,2.9370083]
[1751007189941,0.7245,2448.8,2448.6,28.0210083]
[1751007189942,0.93988784,2448.7,2448.6,28.0210083]
[1751007190136,0.93988784,2448.7,2448.6,25.084]
[1751007190435,1.13268,2448.8,2448.6,25.49221]
[1751007191030,1.13268,2448.8,2448.6,0.40821]
[1751007191237,2.9370083,2448.7,2448.3,40.8]
[1751007191432,0.40824,2448.5,2448.4,31.614]
[1751007191834,0.40822,2448.6,2448.4,31.614]
[1751007193139,0.4082,2448.7,2448.4,34.9592483]
[1751007193539,0.40819,2448.8,2448.5,1.84352]
[1751007193852,0.7116,2449.0,2448.5,1.84352]
[1751007193853,0.7116,2449.0,2448.6,2.9370083]
[1751007194031,0.6995,2449.1,2449.0,0.40815]
[1751007194534,1.10764,2449.1,2448.9,9.7388]
[1751007195335,3.3451583,2449.0,2448.9,3.2078]
[1751007195736,4.7497583,2449.0,2448.9,3.2078]
[1751007196136,0.40816,2448.9,2448.8,31.608]
[1751007196333,1.81276,2448.9,2448.8,31.608]
[1751007196843,10.63285,2448.9,2448.0,3.2078]
[1751007197043,2.9370083,2448.5,2448.3,6.531]
[1751007197243,0.6768,2448.4,2448.3,6.531]
[1751007197742,1.08506,2448.4,2448.3,6.531]
[1751007198132,1.08506,2448.4,2448.3,31.605]
[1751007198742,0.6768,2448.4,2448.3,31.605]
[1751007198942,0.6768,2448.4,2448.3,31.604]
[1751007199344,0.6768,2448.4,2448.3,32.01226]
[1751007199543,0.6768,2448.4,2448.3,31.604]
[1751007199743,0.6768,2448.4,2448.3,32.01226]
[1751007200347,0.6768,2448.4,2448.3,31.604]
[1751007201354,1.08505,2448.4,2448.3,31.604]
[1751007202543,1.08505,2448.4,2448.3,31.603]
[1751007203047,2.0981,2448.8,2448.3,35.21906]
[1751007203243,0.40824,2448.5,2448.3,36.2091]
[1751007203452,0.40824,2448.5,2448.3,36.61736]
[1751007203750,0.40824,2448.5,2448.4,31.602]
[1751007204747,0.6589,2448.7,2448.4,34.5390083]
[1751007204949,1.06711,2448.7,2448.6,2.9370083]
[1751007205148,1.06711,2448.7,2448.6,28.0090083]
[1751007205349,0.6589,2448.7,2448.6,28.0090083]
[1751007205951,0.6589,2448.7,2448.6,28.4172183]
[1751007206651,0.6589,2448.7,2448.6,25.48021]
[1751007207755,0.6589,2448.7,2448.6,25.072]
[1751007209949,1.0671,2448.7,2448.6,25.072]
[1751007211651,1.0671,2448.7,2448.6,25.068]
[1751007214356,2.01034944,2448.7,2448.6,25.068]
[1751007216159,0.40823,2448.6,2448.5,6.523]
[1751007216365,0.40823,2448.6,2448.5,31.589]
[1751007218458,1.35279338,2448.6,2448.5,31.589]
[1751007218965,0.40823,2448.5,2448.3,5.05775]
[1751007219463,0.40823,2448.5,2448.4,31.588]
[1751007220062,0.40825,2448.4,2448.3,3.2078]
[1751007220464,0.40825,2448.4,2448.3,28.2718]
[1751007222666,0.40826,2448.3,2448.2,6.523]
[1751007222866,1.11416,2448.3,2448.2,31.587]
[1751007223066,0.40828,2448.2,2448.1,2.4293197]
[1751007223366,0.40828,2448.2,2448.1,34.0163197]
[1751007223570,1.11418,2448.3,2448.1,34.0163197]
[1751007224062,0.4083,2448.1,2448.0,5.6371197]
[1751007224462,0.4083,2448.1,2448.0,28.2708]
[1751007224966,0.4083,2448.1,2448.0,3.2078]
[1751007225167,0.4083,2448.1,2448.0,28.2708]
[1751007226168,1.09819,2448.2,2448.0,28.2708]
[1751007226561,1.09819,2448.2,2448.0,30.7001197]
[1751007227370,0.4083,2448.1,2448.0,30.7001197]
[1751007231476,0.4083,2448.1,2448.0,28.2708]
[1751007231874,0.4083,2448.1,2448.0,29.696]
[1751007234071,1.09819,2448.2,2448.0,30.10431]
[1751007234372,1.09819,2448.2,2448.0,32.5336297]
[1751007235965,3.2078,2448.6,2448.2,0.40828]
[1751007236273,0.40822,2448.6,2448.4,3.3452483]
[1751007236466,0.40822,2448.6,2448.5,25.06]
[1751007236668,0.40822,2448.6,2448.5,26.4759]
[1751007237878,0.40821,2448.7,2448.5,26.4759]
[1751007238077,1.3575,2448.8,2448.6,1.4248]
[1751007238269,0.6949,2448.8,2448.7,25.06]
[1751007238475,0.94434428,2448.8,2448.7,26.16929]
[1751007238673,0.94434428,2448.8,2448.7,27.59409]
[1751007239378,0.94434428,2448.8,2448.7,27.1859]
[1751007240079,0.94434428,2448.8,2448.7,27.5941]
[1751007240280,0.94434428,2448.8,2448.7,27.1859]
[1751007244079,0.94434428,2448.8,2448.7,34.1091]
[1751007244277,4.5727,2449.2,2448.9,0.40816]
[1751007244576,0.94336515,2449.1,2448.9,28.3991683]
[1751007244778,2.43873197,2449.5,2449.0,1.3909]
[1751007245077,0.94329412,2449.5,2449.3,3.3450983]
[1751007245380,3.61585,2449.6,2449.4,26.4439]
[1751007245580,0.94301344,2449.5,2449.4,26.4439]
[1751007246184,0.94301344,2449.5,2449.4,26.85198]
[1751007246385,0.94301344,2449.5,2449.4,26.4439]
[1751007246970,0.94301344,2449.5,2449.2,3.2078]
[1751007247177,0.94301344,2449.4,2449.3,31.567]
[1751007247583,0.94301344,2449.4,2449.3,32.9364]
[1751007249571,3.61585,2449.6,2449.3,36.2814883]
[1751007249880,3.2078,2449.6,2449.4,1.84848]
[1751007250074,3.2078,2449.6,2449.5,26.4884]
[1751007250377,0.7003,2449.8,2449.5,3.46619149]
[1751007250581,0.7127,2450.1,2450.0,0.40798]
[1751007250774,0.94055289,2450.2,2450.1,6.1448083]
[1751007250973,2.43873197,2450.6,2450.2,1.4404]
[1751007250974,0.94055728,2450.5,2450.2,1.4404]
[1751007251171,4.5781,2450.7,2450.4,3.3449183]
[1751007251370,0.93968965,2450.6,2450.5,26.8963]
[1751007251571,0.93968965,2450.6,2450.5,29.4254083]
[1751007251772,0.6575,2451.0,2450.5,29.8333083]
[1751007251981,1.34671371,2450.9,2450.6,0.40788]
[1751007252178,0.40784,2450.9,2450.7,25.045]
[1751007252385,1.06533,2451.0,2450.7,25.045]
[1751007252582,0.40783,2450.9,2450.7,25.045]
[1751007253080,0.6575,2451.0,2450.6,1.4404]
[1751007253081,0.40785,2450.8,2450.6,1.4404]
[1751007253285,1.06533,2451.0,2450.7,31.559]
[1751007254184,0.6575,2451.0,2450.7,31.559]
[1751007254385,0.6575,2451.0,2450.8,1.3865]
[1751007254586,1.06532,2451.0,2450.9,25.044]
[1751007255589,0.40783,2450.9,2450.8,1.3865]
[1751007255783,1.06532,2451.0,2450.8,26.4265]
[1751007256487,0.6575,2451.0,2450.8,26.4265]
[1751007256989,0.40783,2450.9,2450.8,26.4265]
[1751007257187,1.06532,2451.0,2450.8,26.4265]
[1751007258495,0.40787,2450.7,2450.4,3.2078]
[1751007258686,0.40787,2450.7,2450.5,31.547]
[1751007258889,0.40787,2450.7,2450.5,32.8769]
[1751007259686,0.40786,2450.8,2450.5,32.8769]
[1751007260088,0.40786,2450.7,2450.5,32.8769]
[1751007260791,0.40788,2450.6,2450.5,32.8769]
[1751007262099,0.6575,2451.0,2450.5,32.8769]
[1751007262302,0.40787,2450.7,2450.5,32.8769]
[1751007264396,0.40785,2450.8,2450.5,33.28479]
[1751007264596,0.40785,2450.8,2450.6,0.7046]
[1751007264796,0.40785,2450.8,2450.7,25.028]
[1751007265005,0.6575,2451.0,2450.7,25.028]
[1751007265302,0.40783,2450.9,2450.7,25.028]
[1751007265807,0.40784,2450.9,2450.7,25.028]
[1751007266304,0.40784,2450.9,2450.7,25.43586]
[1751007266503,0.40784,2450.9,2450.7,25.028]
[1751007266806,0.40785,2450.8,2450.7,25.028]
[1751007267498,0.40785,2450.8,2450.6,2.1284]
[1751007267803,0.40786,2450.8,2450.7,25.026]
[1751007268400,0.40784,2450.9,2450.7,25.026]
[1751007268599,0.40784,2450.9,2450.8,1.314]
[1751007270609,3.9333,2451.2,2450.4,3.2078]
[1751007270803,1.3355,2451.1,2450.5,33.25589]
[1751007271002,0.40785,2450.8,2450.5,33.25589]
[1751007271204,0.40784,2450.9,2450.6,0.40788]
[1751007271402,0.40784,2450.9,2450.6,31.93388]
[1751007271708,0.40784,2450.9,2450.7,1.4276]
[1751007271897,0.40784,2450.9,2450.8,25.023]
[1751007276006,3.9333,2451.2,2450.8,25.023]
[1751007276306,0.40782,2451.0,2450.8,25.023]
[1751007277014,7.53737808,2450.9,2450.8,25.019]
[1751007277313,7.94520808,2450.9,2450.8,25.019]
[1751007277506,3.2078,2450.9,2450.8,25.019]
[1751007277910,0.40782,2451.0,2450.8,25.42684]
[1751007278111,0.40782,2451.0,2450.8,26.84044]
[1751007279815,0.40781,2451.1,2450.8,26.84044]
[1751007280114,0.40782,2451.0,2450.8,26.84044]
[1751007280310,0.93782078,2450.9,2450.8,26.84044]
[1751007280915,0.40781,2451.1,2450.8,26.84044]
[1751007281118,1.34564257,2451.0,2450.8,26.84044]
[1751007281317,0.93782257,2450.9,2450.8,27.11372937]
[1751007281927,0.93782257,2450.9,2450.8,1.4136]
[1751007282215,0.93782257,2450.9,2450.8,31.519]
[1751007282216,3.61563,2450.9,2450.8,31.519]
[1751007282416,0.40786,2450.8,2450.5,4.2412097]
[1751007282617,1.34569257,2450.7,2450.6,31.519]
[1751007283014,0.93782257,2450.7,2450.6,31.519]
[1751007283211,0.93782257,2450.7,2450.6,33.30918]
[1751007284114,1.08876,2450.8,2450.6,33.30918]
[1751007284317,1.08876,2450.8,2450.7,31.518]
[1751007284614,2.02826203,2450.8,2450.7,31.518]
[1751007284815,0.40786,2450.7,2450.6,1.3823]
[1751007285018,0.93950203,2450.7,2450.6,33.30817]
[1751007285513,7.47047808,2451.2,2450.8,0.40785]
[1751007285721,0.40783,2451.0,2450.9,25.014]
[1751007285910,1.34731956,2451.0,2450.9,25.014]
[1751007287318,0.93948956,2451.0,2450.9,28.35140808]
[1751007288827,0.40773,2451.5,2451.3,0.40776]
[1751007289122,0.939317,2451.4,2451.3,25.41976]
[1751007289919,1.347067,2451.4,2451.3,25.011]
[1751007290523,0.939317,2451.4,2451.1,1.4234]
[1751007290718,1.347087,2451.3,2451.2,31.514]
[1751007290919,0.939317,2451.3,2451.2,31.514]
[1751007291216,1.347087,2451.3,2451.2,31.514]
[1751007292025,1.347087,2451.3,2451.1,0.40779]
[1751007292216,0.674,2451.2,2451.1,6.91079]
[1751007292417,0.674,2451.2,2451.1,31.91979]
[1751007292918,0.674,2451.2,2451.1,31.512]
[1751007294812,0.674,2451.2,2451.1,31.9198]
[1751007295015,0.674,2451.2,2451.1,31.512]
[1751007295216,0.674,2451.2,2451.1,31.9198]
[1751007295821,0.674,2451.2,2451.1,31.512]
[1751007296123,0.674,2451.2,2451.1,31.9198]
[1751007297322,0.674,2451.2,2451.1,31.512]
[1751007298024,1.08178,2451.2,2451.1,31.512]
[1751007300026,0.40782,2451.0,2450.9,2.99736256]
[1751007300221,0.40782,2451.0,2450.9,37.43194064]
[1751007301526,0.40782,2451.0,2450.9,34.50236256]
[1751007301926,0.40782,2451.0,2450.9,33.10606256]
[1751007302128,0.40782,2451.0,2450.9,33.10506256]
[1751007302623,0.40782,2451.0,2450.9,31.494]
[1751007302925,0.40783,2450.9,2450.8,1.61106256]
[1751007303320,0.40783,2450.9,2450.8,33.10406256]
[1751007303520,0.40783,2450.9,2450.8,1.61106256]
[1751007303719,0.40783,2450.9,2450.8,8.10306256]
[1751007303924,0.40783,2450.9,2450.8,33.10306256]
[1751007305131,0.40783,2450.9,2450.8,1.61106256]
[1751007305425,0.40783,2450.9,2450.8,33.10306256]
[1751007306730,0.40783,2450.9,2450.8,31.492]
[1751007306933,0.40785,2450.8,2450.7,4.81886256]
[1751007307136,1.12385,2450.8,2450.7,36.31086256]
[1751007308128,0.40787,2450.7,2450.6,1.61106256]
[1751007308333,3.64557808,2450.8,2450.5,1.61106256]
[1751007308334,0.40788,2450.6,2450.5,1.61106256]
[1751007308627,0.40788,2450.6,2450.5,27.4273197]
[1751007308830,0.40788,2450.6,2450.5,28.8612197]
[1751007309030,0.40788,2450.6,2450.5,26.4319]
[1751007309232,0.716,2450.8,2450.5,31.79079778]
[1751007309432,0.6738,2451.1,2450.7,4.54153375]